bitfinex/quotes_ETHUSD_20241022
["timestamp","ask_amount","ask_price","bid_price","bid_amount"]
[1729564563734,0.35361378,2650.9,2650.7,0.0995589]
[1729564563973,0.91939582,2650.9,2650.7,0.0995589]
[1729564564151,0.91939582,2650.8,2650.7,1.7413499]
[1729564564350,0.35361378,2650.8,2650.7,1.7413499]
[1729564565048,0.35361378,2650.8,2650.7,0.0995589]
[1729564565449,0.35361378,2650.8,2650.7,1.7413499]
[1729564565838,0.35361378,2650.8,2650.7,0.0995589]
[1729564566075,5.76784478,2650.8,2650.7,0.0995589]
[1729564566374,3.77272,2650.7,2650.2,2.404891]
[1729564566775,0.91846987,2650.6,2650.2,2.404891]
[1729564566961,0.35325764,2650.5,2650.2,2.404891]
[1729564567140,0.35325764,2650.4,2650.2,2.404891]
[1729564567342,3.77272,2650.7,2650.2,2.404891]
[1729564567568,0.91844371,2650.6,2650.2,2.404891]
[1729564567874,0.35324758,2650.5,2650.2,2.404891]
[1729564568080,0.35324758,2650.4,2650.2,2.404891]
[1729564568277,3.77272,2650.7,2650.2,2.404891]
[1729564568579,5.414231,2650.8,2650.2,2.404891]
[1729564568580,0.35323526,2650.6,2650.4,1.641791]
[1729564568735,3.77224,2651.0,2650.5,2.423791]
[1729564568939,0.91831979,2650.9,2650.5,2.423791]
[1729564569191,0.35319992,2650.8,2650.5,2.423791]
[1729564569353,3.77224,2651.0,2650.5,6.196661]
[1729564569564,0.91813,2650.9,2650.5,6.196661]
[1729564569884,0.35312692,2650.8,2650.5,6.196661]
[1729564570083,0.35312692,2650.7,2650.5,6.196661]
[1729564570283,3.77224,2651.0,2650.5,6.196661]
[1729564570497,4.7694471,2651.0,2650.5,6.196661]
[1729564570789,0.91803068,2650.9,2650.5,0.782]
[1729564570997,2.81887972,2650.8,2650.2,0.7951]
[1729564571166,4.69075911,2650.7,2650.2,2.436891]
[1729564571344,0.35308872,2650.6,2650.2,2.436891]
[1729564571686,0.35308872,2650.5,2650.2,2.436891]
[1729564571870,0.35308872,2650.4,2650.2,2.436891]
[1729564572083,0.824,2650.8,2650.3,1.641791]
[1729564572394,0.3531032,2650.7,2650.4,1.641791]
[1729564572549,0.3531032,2650.6,2650.5,1.641791]
[1729564572747,0.3531032,2650.6,2650.4,1.641791]
[1729564572971,0.824,2650.8,2650.4,2.22863727]
[1729564573178,0.35307767,2650.7,2650.4,0.58684627]
[1729564573383,0.35307767,2650.6,2650.4,0.58684627]
[1729564573586,0.824,2650.8,2650.3,5.414891]
[1729564573890,0.917984,2650.7,2650.3,5.414891]
[1729564574088,0.35307077,2650.6,2650.3,1.641791]
[1729564574252,0.35307077,2650.5,2650.3,1.641791]
[1729564574453,0.824,2650.8,2650.3,5.414941]
[1729564574757,0.35306103,2650.7,2650.5,2.436491]
[1729564574973,0.35306103,2650.6,2650.5,2.436491]
[1729564575177,0.35306103,2650.6,2650.5,0.7947]
[1729564575384,3.77231,2650.9,2650.5,0.7947]
[1729564575675,0.91787653,2650.8,2650.5,0.7947]
[1729564575849,0.35303013,2650.7,2650.5,0.7947]
[1729564576047,0.35303013,2650.6,2650.5,0.7947]
[1729564577762,0.35303013,2650.6,2650.5,0.88735241]
[1729564578158,0.35303013,2650.6,2650.5,0.09265241]
[1729564579697,6.51955113,2650.6,2650.5,0.09265241]
[1729564579901,8.17015829,2650.6,2650.5,0.09265241]
[1729564580185,8.17015829,2650.6,2650.0,1.641791]
[1729564580186,3.7729,2650.5,2650.0,1.641791]
[1729564580502,4.12604013,2650.4,2650.1,1.641791]
[1729564580653,0.35303013,2650.3,2650.0,1.641791]
[1729564580849,0.35303013,2650.2,2650.0,1.641791]
[1729564581083,3.77301,2650.4,2650.0,1.641791]
[1729564581309,0.35314157,2650.3,2650.0,1.641791]
[1729564581486,0.35314157,2650.2,2650.1,1.641791]
[1729564581656,0.35314157,2650.2,2650.0,1.641791]
[1729564582002,3.77309,2650.4,2650.0,1.641791]
[1729564582152,0.35316557,2650.3,2650.0,1.641791]
[1729564582359,0.35316557,2650.2,2650.0,1.641791]
[1729564582608,3.77319,2650.3,2650.0,1.641791]
[1729564582894,0.35318732,2650.2,2650.0,1.641791]
[1729564583096,0.35319584,2650.1,2649.9,6.204091]
[1729564583254,4.58299,2650.3,2650.0,1.641791]
[1729564583615,0.35320266,2650.2,2650.0,1.641791]
[1729564583790,4.58299,2650.3,2650.0,1.641791]
[1729564583991,0.3531977,2650.2,2650.0,1.641791]
[1729564584186,4.58299,2650.3,2650.0,1.641791]
[1729564584513,0.35320064,2650.2,2650.1,1.641791]
[1729564585499,0.3531938,2650.2,2650.1,1.641791]
[1729564585803,4.59735,2650.5,2650.1,1.641791]
[1729564586114,0.35318311,2650.4,2650.3,1.641791]
[1729564586324,0.35318311,2650.4,2650.2,2.412391]
[1729564586609,3.77285,2650.6,2650.2,2.412391]
[1729564586773,4.69121742,2650.5,2650.2,2.412391]
[1729564586972,0.35320434,2650.4,2650.2,0.7706]
[1729564587174,0.35320434,2650.3,2650.2,0.7706]
[1729564587594,0.35320434,2650.3,2650.0,1.641791]
[1729564587799,0.35320434,2650.2,2650.1,1.641791]
[1729564588107,0.35320434,2650.3,2650.1,1.641791]
[1729564588430,0.35320434,2650.2,2650.1,1.641791]
[1729564589585,0.3532767,2650.2,2650.1,1.641791]
[1729564590904,3.77288,2650.5,2650.1,1.641791]
[1729564591203,0.91853041,2650.4,2650.1,1.641791]
[1729564591403,0.35327895,2650.3,2650.1,1.641791]
[1729564591603,0.35327895,2650.2,2650.1,1.641791]
[1729564593011,0.35327895,2650.2,2650.1,1.72860377]
[1729564593405,4.54939,2650.4,2650.1,1.72860377]
[1729564593573,0.35332346,2650.3,2650.1,1.72860377]
[1729564593779,0.35332346,2650.2,2650.1,1.72860377]
[1729564595305,0.35332346,2650.2,2650.1,0.08681277]
[1729564596535,0.35332346,2650.2,2650.1,1.72860377]
[1729564597432,4.54939,2650.4,2650.1,0.08681277]
[1729564597625,0.35336282,2650.3,2650.1,0.08681277]
[1729564597929,0.35335996,2650.2,2650.1,0.08681277]
[1729564598122,0.35335996,2650.2,2650.1,1.72860377]
[1729564601505,0.35338395,2650.2,2650.1,0.08681277]
[1729564605502,0.35339781,2650.2,2650.1,0.08681277]
[1729564606355,4.12669781,2650.2,2649.9,3.79]
[1729564606554,0.35339781,2650.1,2650.0,0.08203799]
[1729564607418,7.97644423,2650.1,2650.0,0.08203799]
[1729564607577,10.97644423,2650.1,2650.0,0.08203799]
[1729564607744,3.77413,2649.7,2649.5,0.01886609]
[1729564608086,0.35339781,2649.6,2649.4,1.641791]
[1729564608246,4.56993,2649.7,2649.4,1.641791]
[1729564608442,0.35334983,2649.6,2649.4,1.641791]
[1729564608662,4.56993,2649.7,2649.4,1.641791]
[1729564608864,0.35334994,2649.6,2649.4,1.641791]
[1729564609064,4.56993,2649.7,2649.4,1.641791]
[1729564609279,0.35334948,2649.6,2649.4,1.641791]
[1729564609434,0.7958,2649.7,2649.4,1.641791]
[1729564609780,0.35327694,2649.6,2649.4,1.641791]
[1729564610078,0.7958,2649.7,2649.4,1.641791]
[1729564610369,0.3532147,2649.6,2649.4,1.641791]
[1729564610683,4.56982,2649.7,2649.4,1.641791]
[1729564610894,0.35321645,2649.6,2649.4,1.641791]
[1729564611029,4.56982,2649.7,2649.4,1.641791]
[1729564611666,0.35317489,2649.6,2649.4,1.641791]
[1729564611984,3.77446,2649.4,2649.1,3.79]
[1729564612194,5.415951,2649.6,2649.1,3.79]
[1729564612195,5.416511,2649.2,2649.1,3.79]
[1729564612352,5.416511,2649.2,2648.7,0.8146]
[1729564612353,3.77503,2649.0,2648.7,0.8146]
[1729564612540,3.77503,2649.0,2648.7,2.456391]
[1729564612742,3.77503,2649.0,2648.7,0.8146]
[1729564612957,4.7732891,2649.2,2648.7,2.456391]
[1729564613187,4.12802653,2649.1,2648.7,2.456391]
[1729564613482,3.77487,2649.1,2648.7,2.456391]
[1729564615244,4.7732891,2649.2,2648.8,1.641791]
[1729564615447,3.77472,2649.2,2648.9,1.641791]
[1729564615860,3.77472,2649.2,2648.8,1.641791]
[1729564616067,3.77472,2649.2,2648.9,1.641791]
[1729564617502,0.7946,2649.3,2649.1,1.641791]
[1729564617640,0.8146,2649.6,2649.2,1.641791]
[1729564617970,5.1344391,2649.6,2649.1,0.806]
[1729564618182,4.5888,2649.6,2649.1,0.806]
[1729564618712,0.8146,2649.6,2649.1,4.58077]
[1729564619038,0.8146,2649.6,2649.4,1.641791]
[1729564619246,4.59913,2649.7,2649.3,1.641791]
[1729564620381,4.59913,2649.7,2649.4,1.641791]
[1729564620965,4.59913,2649.7,2649.3,1.641791]
[1729564621161,0.8251,2649.7,2649.4,1.641791]
[1729564621368,5.415431,2650.0,2649.4,1.641791]
[1729564621369,4.59869,2650.0,2649.6,1.641791]
[1729564621690,4.59868,2650.0,2649.7,1.641791]
[1729564621996,3.77373,2649.9,2649.6,1.641791]
[1729564622552,3.77373,2649.9,2649.5,2.394491]
[1729564622714,3.77373,2649.9,2648.9,7.612]
[1729564622715,4.54763,2649.6,2648.9,12.16118]
[1729564623047,3.77438,2649.5,2649.1,1.641791]
[1729564623245,3.77438,2649.5,2649.2,1.641791]
[1729564623635,3.77444,2649.4,2648.9,2.415891]
[1729564623837,3.7746,2649.3,2648.9,1.641791]
[1729564624321,3.7746,2649.3,2649.0,1.641791]
[1729564624521,3.77475,2649.2,2648.9,1.641791]
[1729564624736,3.77494,2649.1,2648.6,3.77547]
[1729564624918,3.77494,2649.1,2648.7,1.641791]
[1729564625098,8.32296,2649.2,2648.8,1.641791]
[1729564625303,5.60652141,2649.2,2648.8,1.641791]
[1729564625847,9.38133141,2649.2,2648.8,1.641791]
[1729564626367,5.60652141,2649.2,2648.6,3.77547]
[1729564626663,8.32299,2649.2,2648.6,3.77547]
[1729564626857,4.54815,2649.2,2648.6,3.77547]
[1729564627237,8.32296,2649.2,2648.6,3.77547]
[1729564627437,4.54815,2649.2,2648.6,3.77547]
[1729564628624,3.7751,2649.0,2648.4,4.54989]
[1729564628847,3.7751,2649.0,2648.4,4.54988]
[1729564629152,4.22995,2649.0,2648.4,4.54988]
[1729564629745,4.22995,2649.0,2648.4,8.32566]
[1729564630024,3.7751,2649.0,2648.4,4.54988]
[1729564630241,7.5502,2649.0,2648.4,4.54988]
[1729564631250,3.7751,2649.0,2648.4,4.54988]
[1729564631557,7.55019,2649.0,2648.4,4.54988]
[1729564632539,3.77509,2649.0,2648.4,4.54987]
[1729564633326,3.77509,2649.0,2648.5,3.77568]
[1729564633526,3.77509,2649.0,2648.5,7.44790491]
[1729564633949,4.54819,2649.2,2648.6,3.77548]
[1729564634275,8.32303,2649.2,2648.6,3.77548]
[1729564634470,4.54819,2649.2,2648.6,3.77548]
[1729564635680,8.32299,2649.2,2648.6,3.77548]
[1729564635871,4.54819,2649.2,2648.6,3.77548]
[1729564636073,3.77488,2649.1,2648.6,3.77548]
[1729564636976,4.54819,2649.2,2648.6,3.77548]
[1729564637762,4.54819,2649.2,2648.7,0.08391216]
[1729564639081,8.323,2649.2,2648.7,0.08391216]
[1729564639488,9.21719631,2649.2,2648.7,0.08391216]
[1729564640686,3.77488,2649.1,2648.7,0.08391216]
[1729564643484,5.44238631,2649.2,2648.7,0.08391216]
[1729564643788,8.32301,2649.2,2648.7,0.08391216]
[1729564644871,4.54819,2649.2,2648.7,0.08391216]
[1729564645083,8.323,2649.2,2648.7,0.08391216]
[1729564645887,3.77529,2648.8,2648.7,0.08391216]
[1729564646252,3.77529,2648.8,2648.4,0.7741]
[1729564646456,3.77529,2648.8,2648.7,0.08399599]
[1729564646651,3.77529,2648.8,2648.4,0.7741]
[1729564646894,3.77529,2648.8,2648.7,0.08399599]
[1729564647059,3.77572,2648.5,2648.3,3.79]
[1729564647256,7.55158,2648.5,2648.3,3.79]
[1729564647877,3.77572,2648.5,2648.3,3.79]
[1729564649592,3.77551,2648.7,2648.3,5.43426316]
[1729564649793,0.66066022,2648.6,2648.3,3.79]
[1729564650483,3.77572,2648.5,2648.3,3.79]
[1729564652430,0.66066022,2648.6,2648.1,0.01886609]
[1729564652431,3.77614,2648.2,2648.1,0.01886609]
[1729564652718,3.77636,2648.1,2647.7,0.7939]
[1729564652934,3.77643,2648.0,2647.7,2.43816316]
[1729564653069,4.57933,2648.0,2647.8,0.08396551]
[1729564653263,3.77657,2647.9,2647.8,0.08396551]
[1729564653459,3.77657,2647.9,2647.6,1.64426316]
[1729564653657,3.77657,2647.9,2647.8,0.08396551]
[1729564653861,3.77657,2647.9,2647.6,1.64426316]
[1729564654110,3.77657,2647.9,2647.8,0.08396551]
[1729564654278,3.77657,2647.9,2647.6,1.64426316]
[1729564654279,4.3180717,2647.9,2647.6,1.64426316]
[1729564654480,0.5415017,2647.9,2647.8,0.08396551]
[1729564654709,0.5415017,2647.9,2647.6,1.64426316]
[1729564655012,0.8029,2648.0,2647.6,1.64426316]
[1729564655181,4.57941,2648.0,2647.7,0.08396551]
[1729564655397,3.77658,2647.9,2647.7,0.08396551]
[1729564655695,3.77672,2647.8,2647.3,4.56]
[1729564655894,1.64426316,2647.6,2647.3,3.79]
[1729564656076,3.77716,2647.5,2647.3,3.79]
[1729564656302,4.54604,2647.6,2647.3,3.79]
[1729564656486,0.7689,2647.6,2647.3,3.79]
[1729564656673,3.0,2648.1,2647.5,1.64426316]
[1729564656674,3.0,2647.9,2647.5,1.64426316]
[1729564656883,3.7763,2648.1,2647.7,1.64426316]
[1729564657085,4.5398,2648.2,2647.8,1.64426316]
[1729564657402,4.5398,2648.2,2647.6,3.77699]
[1729564657403,4.2303,2648.1,2647.7,1.64426316]
[1729564657562,0.45398,2648.1,2647.8,1.64426316]
[1729564657767,4.5398,2648.2,2647.8,1.64426316]
[1729564657996,6.18406316,2648.2,2647.7,1.64426316]
[1729564658304,3.7763,2648.1,2647.7,1.64426316]
[1729564658770,4.5398,2648.2,2647.8,1.64426316]
[1729564660219,0.7636,2648.2,2647.8,1.64426316]
[1729564660570,4.53976,2648.2,2647.8,1.64426316]
[1729564661019,4.53976,2648.2,2647.7,1.64426316]
[1729564661390,4.53976,2648.2,2647.7,5.42109316]
[1729564661725,3.77645,2648.0,2647.5,2.39916316]
[1729564661926,3.77645,2648.0,2647.5,0.7549]
[1729564662075,3.7766,2647.9,2647.4,3.77722]
[1729564662611,3.7766,2647.9,2646.9,0.01]
[1729564662612,5.83582632,2648.2,2645.9,0.39428847]
[1729564662613,0.8178,2646.0,2645.9,0.39428847]
[1729564662923,0.8178,2646.0,2645.0,0.80616609]
[1729564662924,1.828505,2646.0,2645.0,0.7873]
[1729564663139,3.7797,2645.8,2645.0,0.7873]
[1729564663433,3.77973,2645.7,2645.1,0.07066044]
[1729564663645,5.42399316,2645.7,2645.1,0.07066044]
[1729564663924,6.77945,2645.9,2645.3,1.64426316]
[1729564664077,3.77957,2645.8,2645.3,1.59426316]
[1729564664279,7.9631625,2645.9,2645.4,0.07255254]
[1729564664516,3.7796,2645.8,2645.4,0.07255254]
[1729564664672,7.9631625,2645.9,2645.0,0.7873]
[1729564664991,4.9631625,2645.9,2645.0,4.56792]
[1729564665194,4.9631625,2645.9,2645.1,0.53113117]
[1729564665525,3.7796,2645.8,2645.1,0.53113117]
[1729564665872,4.9631625,2645.9,2645.1,0.53113117]
[1729564666115,3.77945,2645.9,2645.1,0.53113117]
[1729564666322,4.5535,2646.3,2645.7,3.6819932]
[1729564666689,4.5535,2646.3,2645.6,0.90238956]
[1729564666919,3.77863,2646.5,2645.8,0.07501141]
[1729564667216,3.77872,2646.4,2645.9,0.07501141]
[1729564667418,3.77872,2646.4,2645.6,0.90238956]
[1729564667758,4.534325,2646.5,2646.0,0.07501141]
[1729564668028,0.755695,2646.5,2645.7,7.53661461]
[1729564668188,4.55623,2646.6,2645.9,3.77942]
[1729564668676,4.55623,2646.6,2645.8,3.77957]
[1729564668871,4.55623,2646.6,2646.0,0.07501141]
[1729564669077,5.011853,2646.6,2645.6,0.8268]
[1729564669388,3.77873,2646.4,2645.6,0.8268]
[1729564669602,3.77873,2646.4,2645.7,0.07469815]
[1729564669938,8.0215632,2645.8,2645.7,0.07469815]
[1729564670092,12.75620372,2645.8,2645.7,0.07469815]
[1729564670293,3.77991,2645.6,2644.9,3.78085]
[1729564670478,8.34555632,2645.8,2644.9,3.78085]
[1729564670822,3.0,2645.7,2645.0,0.06428656]
[1729564671111,1.56595632,2645.8,2645.0,0.06428656]
[1729564671309,1.56595632,2645.8,2645.1,3.78048]
[1729564671721,1.56595632,2645.8,2645.2,0.06428656]
[1729564672220,4.58173632,2645.8,2645.2,0.06428656]
[1729564672723,4.59479,2644.6,2644.5,0.1266813]
[1729564672930,0.8135,2644.9,2644.5,0.1266813]
[1729564673423,3.78075,2645.0,2644.5,0.1266813]
[1729564674517,4.59397,2645.2,2644.5,0.1266813]
[1729564674718,0.47626542,2645.1,2644.5,3.9080113]
[1729564675328,4.59479,2644.6,2644.5,0.1266813]
[1729564676207,11.8267832,2644.6,2644.5,0.1266813]
[1729564676900,8.14479,2644.6,2644.5,0.1266813]
[1729564677090,7.59479,2644.6,2644.5,0.1266813]
[1729564677287,0.8135,2644.6,2644.5,0.1266813]
[1729564677488,3.78113,2644.8,2644.5,0.1266813]
[1729564677725,3.78116,2644.7,2644.5,0.1266813]
[1729564678103,3.78112,2644.8,2644.5,0.1266813]
[1729564679354,0.8095,2644.7,2644.3,0.00322]
[1729564679525,7.34329,2643.2,2643.1,0.0008]
[1729564679735,3.78313,2643.4,2643.1,0.0008]
[1729564679895,3.78329,2643.2,2643.1,0.0008]
[1729564680432,3.78329,2643.2,2643.1,0.03712566]
[1729564680630,1.056642,2643.2,2643.1,0.0008]
[1729564680831,1.056642,2643.2,2643.1,0.03643804]
[1729564681402,4.58965,2643.5,2643.1,0.03643804]
[1729564681403,7.58965,2643.5,2643.1,0.03643804]
[1729564681602,3.8067,2643.5,2643.1,0.03643804]
[1729564681842,3.0,2643.5,2643.1,0.03643804]
[1729564683202,3.78277,2643.6,2643.1,0.03643804]
[1729564683651,3.0,2643.7,2643.1,0.03643804]
[1729564683943,0.7574833,2643.9,2643.3,4.57434]
[1729564684307,0.7574833,2643.9,2643.4,0.03579835]
[1729564684507,0.7574833,2643.9,2643.4,3.81877835]
[1729564685007,3.78222,2644.0,2643.4,3.81877835]
[1729564685207,3.78222,2644.0,2643.4,3.81869835]
[1729564685208,0.378222,2643.9,2643.4,3.81869835]
[1729564685937,0.378222,2643.9,2643.5,3.78284]
[1729564686101,0.378222,2643.9,2643.4,3.81869835]
[1729564686442,0.378222,2643.9,2643.4,3.7829]
[1729564686614,0.378222,2643.9,2643.5,0.03572201]
[1729564687935,0.378222,2643.9,2643.5,3.81856201]
[1729564688641,0.378222,2643.9,2643.5,0.03572201]
[1729564688809,0.378222,2643.9,2643.5,3.81857201]
[1729564689005,0.378222,2643.9,2643.5,0.03572201]
[1729564689631,3.78259,2643.7,2643.1,0.0008]
[1729564689947,3.78257,2643.8,2643.2,3.81870961]
[1729564690609,3.78257,2643.8,2643.2,7.60188961]
[1729564690838,3.0,2644.1,2643.3,3.78314]
[1729564691039,0.01886609,2644.3,2643.3,0.8245]
[1729564691249,0.01886609,2644.3,2643.7,3.78248]
[1729564691250,3.53087765,2644.3,2643.7,3.78248]
[1729564691418,0.53087765,2644.3,2643.8,3.78242]
[1729564691624,0.53087765,2644.3,2643.9,3.81809403]
[1729564691826,0.53087765,2644.3,2643.9,0.03584403]
[1729564692034,0.53087765,2644.3,2643.5,3.78285]
[1729564692335,4.21322877,2644.2,2643.7,3.78256]
[1729564692732,0.43124877,2644.2,2643.8,0.03573719]
[1729564693152,0.43124877,2644.2,2643.7,3.78256]
[1729564693345,0.43124877,2644.2,2643.9,0.03564562]
[1729564693531,0.43124877,2644.2,2643.7,3.78256]
[1729564693713,0.43124877,2644.2,2644.0,0.03564562]
[1729564693910,0.43124877,2644.2,2643.7,3.78256]
[1729564694115,0.74991291,2644.3,2644.1,0.03564562]
[1729564694430,0.74991291,2644.3,2643.9,3.78215]
[1729564694624,0.74991291,2644.3,2644.2,0.03564562]
[1729564694831,7.53233,2644.5,2643.9,3.78215]
[1729564695036,7.53233,2644.5,2644.2,0.03564562]
[1729564695257,7.53233,2644.5,2643.9,3.78215]
[1729564695258,1.1772732,2644.4,2643.9,3.78215]
[1729564695549,1.1772732,2644.4,2644.3,0.03564562]
[1729564696012,3.459062,2644.6,2644.0,0.8245]
[1729564696208,0.459062,2644.6,2644.3,0.03564562]
[1729564696440,3.0,2644.5,2644.0,4.60661]
[1729564696758,3.0,2644.5,2644.4,0.03564562]
[1729564696962,3.0,2644.5,2644.0,4.60661]
[1729564697268,3.0,2644.5,2644.4,0.03564562]
[1729564697429,3.7240442,2644.5,2644.1,3.782]
[1729564697626,3.7240442,2644.5,2644.2,0.03564562]
[1729564697921,7.5055042,2644.5,2644.0,0.8245]
[1729564698121,7.5055042,2644.5,2644.3,0.03564562]
[1729564698322,7.5055042,2644.5,2644.0,0.8245]
[1729564698523,7.5055042,2644.5,2644.4,0.03564562]
[1729564698727,3.7240442,2644.5,2644.0,4.60662]
[1729564699050,3.7240442,2644.5,2644.1,0.03564562]
[1729564699728,7.5055442,2644.5,2644.1,0.03564562]
[1729564701056,0.7240442,2644.5,2644.1,0.03564562]
[1729564701264,3.7240442,2644.5,2644.1,0.03564562]
[1729564701464,7.5054842,2644.5,2644.1,0.03564562]
[1729564701747,3.7240442,2644.5,2644.1,0.03564562]
[1729564701952,3.78114,2644.7,2644.1,0.03564562]
[1729564702149,3.78132,2644.6,2644.0,4.60654]
[1729564702349,3.78132,2644.6,2644.2,0.03564562]
[1729564702514,3.78132,2644.6,2644.1,0.03520305]
[1729564702714,3.78132,2644.6,2644.0,4.60654]
[1729564702715,3.0,2644.7,2644.0,4.60652]
[1729564702915,8.63971659,2644.7,2644.2,0.03520305]
[1729564703153,8.63971659,2644.7,2644.1,3.78191]
[1729564703341,8.63971659,2644.7,2644.3,0.03520305]
[1729564703658,8.63971659,2644.7,2644.4,0.03520305]
[1729564703820,8.63971659,2644.7,2644.1,3.78191]
[1729564704021,3.78129,2644.6,2644.5,0.03520305]
[1729564704356,5.09847366,2644.6,2644.1,3.78191]
[1729564704557,6.78123,2644.7,2644.5,0.03520305]
[1729564704727,6.78123,2644.7,2644.1,3.78191]
[1729564704728,6.78123,2644.7,2644.1,7.56382]
[1729564704927,6.78123,2644.7,2644.6,0.03520305]
[1729564705136,6.78123,2644.7,2644.1,3.78191]
[1729564705321,6.78123,2644.7,2644.6,0.03520305]
[1729564705654,7.97120647,2644.7,2644.1,3.78191]
[1729564705863,7.97120647,2644.7,2644.6,0.03520305]
[1729564706020,7.97120647,2644.7,2644.1,3.78191]
[1729564706220,7.97120647,2644.7,2644.6,0.03520305]
[1729564706439,7.97120647,2644.7,2644.1,3.78191]
[1729564706643,7.97120647,2644.7,2644.6,0.03520305]
[1729564706958,7.97120647,2644.7,2644.1,3.78191]
[1729564707172,7.97120647,2644.7,2644.6,0.03520305]
[1729564707644,7.97120647,2644.7,2644.1,3.78191]
[1729564707853,5.03160865,2644.6,2644.1,3.78191]
[1729564708057,5.03160865,2644.6,2644.0,0.8245]
[1729564709585,3.78158,2644.4,2644.0,0.8245]
[1729564711650,5.03160865,2644.6,2644.0,0.8245]
[1729564712077,3.78145,2644.5,2644.0,0.8245]
[1729564712275,4.96275587,2644.5,2644.0,0.8245]
[1729564712962,4.96275587,2644.5,2644.1,0.03520305]
[1729564713362,1.18130587,2644.5,2644.1,0.03520305]
[1729564713974,4.96275587,2644.5,2644.1,0.03520305]
[1729564714143,1.18130587,2644.5,2644.1,0.03520305]
[1729564714351,3.7509,2644.8,2644.1,0.03520305]
[1729564715242,0.35137157,2644.7,2644.1,0.03520305]
[1729564715442,3.7509,2644.8,2644.1,0.03520305]
[1729564715648,0.35139579,2644.7,2644.1,3.81718305]
[1729564715981,0.46888505,2644.7,2644.1,3.81718305]
[1729564716798,0.46888505,2644.7,2644.3,3.78162]
[1729564716963,0.58655475,2644.9,2644.3,3.78162]
[1729564717168,0.58655475,2644.9,2644.2,3.78176]
[1729564717169,0.35150205,2644.8,2644.4,3.78156]
[1729564717365,0.35150205,2644.7,2644.4,7.56304]
[1729564717569,0.58655475,2644.9,2644.5,0.03506575]
[1729564717871,0.35169499,2644.8,2644.5,0.03506575]
[1729564718090,0.58655475,2644.9,2644.5,0.85446575]
[1729564718296,0.35190771,2644.8,2644.5,0.85446575]
[1729564718573,0.58655475,2644.9,2644.5,0.85446575]
[1729564722620,0.58655475,2644.9,2644.6,3.78128]
[1729564722901,0.58655475,2644.9,2644.7,0.03440977]
[1729564724788,0.58655475,2644.9,2644.7,0.49791875]
[1729564725185,0.58655475,2644.9,2644.8,3.781]
[1729564725711,0.58655475,2644.9,2644.8,3.81540977]
[1729564726122,0.18329835,2644.9,2644.8,4.64400977]
[1729564726424,0.01886609,2645.5,2645.1,3.78053]
[1729564726624,0.8214,2645.7,2645.1,4.158513]
[1729564726917,0.35161048,2645.6,2645.2,0.0339065]
[1729564727076,0.8214,2645.7,2645.2,0.0339065]
[1729564727276,0.35160006,2645.6,2645.2,0.0339065]
[1729564727474,0.8214,2645.7,2645.2,0.0339065]
[1729564727680,0.35161421,2645.6,2645.2,0.0339065]
[1729564727976,0.8214,2645.7,2645.0,3.78066]
[1729564728175,0.35161544,2645.6,2645.3,0.0339065]
[1729564728377,0.8214,2645.7,2645.0,3.78066]
[1729564728579,0.35162072,2645.6,2645.4,0.0339065]
[1729564728775,0.8214,2645.7,2645.0,3.78066]
[1729564728992,2.02804712,2645.7,2645.5,0.0339065]
[1729564729521,0.35172666,2645.6,2645.0,3.78066]
[1729564729732,2.02804712,2645.7,2645.0,3.78066]
[1729564729932,0.35164913,2645.6,2645.0,3.78066]
[1729564730097,2.02804712,2645.7,2645.1,3.78049]
[1729564730295,2.02804712,2645.7,2645.1,7.56097]
[1729564730499,8.26517116,2645.9,2645.1,7.56097]
[1729564730825,4.13121676,2645.8,2645.1,3.78048]
[1729564731022,4.13127676,2645.7,2645.1,3.78048]
[1729564731191,3.77974,2645.7,2645.1,3.78048]
[1729564733623,3.77986,2645.6,2644.9,7.56153]
[1729564733831,3.78023,2645.4,2644.8,0.8286]
[1729564734051,3.78072,2645.0,2644.4,4.54873]
[1729564734323,4.54822,2645.0,2644.4,0.7672]
[1729564734486,3.78102,2644.8,2644.4,0.7672]
[1729564735028,4.54822,2645.0,2644.4,0.7672]
[1729564735029,3.78094,2644.9,2644.4,0.7672]
[1729564735329,3.78101,2644.8,2644.4,0.7672]
[1729564735496,5.37164312,2645.0,2644.4,0.7672]
[1729564735687,3.78093,2644.9,2644.4,0.7672]
[1729564735889,5.37164312,2645.0,2644.4,0.7672]
[1729564736089,5.37164312,2645.0,2644.4,4.54875]
[1729564737225,3.78089,2644.9,2644.4,0.7672]
[1729564737431,3.781,2644.8,2644.4,0.7672]
[1729564737597,0.91525331,2644.9,2644.4,0.7672]
[1729564737796,4.54822,2645.0,2644.4,0.7672]
[1729564737797,8.32907,2645.0,2644.4,0.7672]
[1729564738690,8.32907,2645.0,2644.4,4.54877]
[1729564738891,8.32903,2645.0,2644.4,4.54876]
[1729564739112,4.54822,2645.0,2644.4,4.54876]
[1729564739696,4.54822,2645.0,2644.5,3.78139]
[1729564740031,6.78062,2645.1,2644.5,3.78134]
[1729564740248,3.0,2645.1,2644.5,3.78134]
[1729564740597,6.78066,2645.1,2644.5,3.78134]
[1729564740801,3.78079,2645.0,2644.5,3.78134]
[1729564742634,3.78079,2645.0,2644.4,4.54865]
[1729564742844,3.78079,2645.0,2644.5,3.78142]
[1729564745047,0.9526073,2645.5,2644.9,3.78074]
[1729564745242,3.7803,2645.3,2644.8,3.78098]
[1729564745697,0.35182506,2645.2,2644.8,3.78098]
[1729564746000,3.7803,2645.3,2644.8,3.78098]
[1729564747831,0.35179002,2645.2,2644.8,3.78098]
[1729564748157,3.7803,2645.3,2644.8,3.78098]
[1729564749568,0.35171572,2645.2,2644.8,3.78098]
[1729564749741,3.7803,2645.3,2644.8,3.78098]
[1729564749939,3.78024,2645.4,2644.8,3.78098]
[1729564750140,7.56052,2645.4,2644.8,3.78098]
[1729564750344,4.132023,2645.3,2644.8,3.78098]
[1729564750623,3.78029,2645.3,2644.8,3.78098]
[1729564752830,3.78024,2645.4,2644.8,3.78098]
[1729564753137,0.35175762,2645.3,2644.8,4.98785912]
[1729564753355,3.78024,2645.4,2644.8,4.98785912]
[1729564753536,0.35175929,2645.3,2644.8,4.98785912]